fUSD/lending_fUSD_20250105
["ID","MTS","AMOUNT","RATE_DAILY","PERIOD"]
[347775557,1736099445419,-605.81,9.137e-05,2]
[347775558,1736099445429,-1177.46,9.137e-05,2]
[347775559,1736099445440,-641.24,9.137e-05,2]
[347775560,1736099445450,-928.96,9.137e-05,2]
[347775561,1736099445459,-688.04,9.137e-05,2]
[347775562,1736099445472,-500.0,9.137e-05,2]
[347775563,1736099445482,-527.35,9.137e-05,2]
[347775564,1736099445492,-721.42,9.137e-05,2]
[347775565,1736099445501,-721.42,9.137e-05,2]
[347775566,1736099445511,-730.88,9.137e-05,2]
[347775567,1736099445520,-1077.7,9.137e-05,2]
[347775568,1736099445529,-571.01,9.137e-05,2]
[347775569,1736099445538,-500.0,9.137e-05,2]
[347775570,1736099445547,-150.0,9.167e-05,2]
[347775571,1736099445557,-500.0,9.314e-05,2]
[347775572,1736099445566,-500.0,9.314e-05,2]
[347775573,1736099445575,-1081.5,9.314e-05,2]
[347775574,1736099445584,-1059.04,9.314e-05,2]
[347775575,1736099445593,-1107.79,9.314e-05,2]
[347775576,1736099445602,-2621.03,9.314e-05,2]
[347775577,1736099445610,-500.0,9.314e-05,2]
[347775578,1736099445619,-500.0,9.314e-05,2]
[347775579,1736099445628,-616.85,9.314e-05,2]
[347775580,1736099445638,-1460.73,9.314e-05,2]
[347775581,1736099445648,-500.0,9.314e-05,2]
[347775582,1736099445657,-530.93,9.314e-05,2]
[347775583,1736099445668,-711.48,9.314e-05,2]
[347775584,1736099445677,-668.0,9.314e-05,2]
[347775585,1736099445686,-849.33,9.314e-05,2]
[347775586,1736099445695,-500.0,9.314e-05,2]
[347775587,1736099445704,-500.0,9.314e-05,2]
[347775588,1736099445713,-1007.94,9.314e-05,2]
[347775589,1736099445722,-1101.56,9.314e-05,2]
[347775590,1736099445731,-150.0,9.333e-05,2]
[347775591,1736099445741,-150.0,9.333e-05,2]
[347775592,1736099445751,-150.0,9.333e-05,2]
[347775593,1736099445761,-455.07318617,9.408e-05,2]
[347775594,1736099445771,-500.0,9.408e-05,2]
[347775595,1736099445780,-230.72061521,9.408e-05,2]
[347775596,1736099445789,-221.48590639,9.408e-05,2]
[347775597,1736099445799,-164.68487442,9.408e-05,2]
[347775598,1736099445808,-500.0,9.408e-05,2]
[347775599,1736099445817,-500.0,9.408e-05,2]
[347775600,1736099445827,-500.0,9.408e-05,2]
[347775601,1736099445836,-329.55315858,9.408e-05,2]
[347775602,1736099445845,-500.0,9.409e-05,2]
[347775603,1736099445855,-500.0,9.409e-05,2]
[347775604,1736099445865,-500.0,9.409e-05,2]
[347775605,1736099445875,-500.0,9.409e-05,2]
[347775606,1736099445885,-500.0,9.409e-05,2]
[347775607,1736099445894,-562.09,9.409e-05,2]
[347775608,1736099445903,-500.0,9.409e-05,2]
[347775609,1736099445912,-500.0,9.409e-05,2]
[347775610,1736099445921,-500.0,9.409e-05,2]
[347775611,1736099445931,-500.0,9.409e-05,2]
[347775612,1736099445940,-500.0,9.409e-05,2]
[347775613,1736099445951,-500.0,9.409e-05,2]
[347775614,1736099445960,-510.43,9.409e-05,2]
[347775615,1736099445969,-500.0,9.409e-05,2]
[347775616,1736099445979,-500.0,9.409e-05,2]
[347775617,1736099445988,-500.0,9.409e-05,2]
[347775618,1736099445997,-500.0,9.409e-05,2]
[347775619,1736099446006,-518.82,9.409e-05,2]
[347775620,1736099446016,-500.0,9.409e-05,2]
[347775621,1736099446026,-578.326912,9.409e-05,2]
[347775622,1736099446035,-500.0,9.409e-05,2]
[347775623,1736099446044,-500.0,9.409e-05,2]
[347775624,1736099446053,-1184.1,9.409e-05,2]
[347775625,1736099446062,-500.0,9.409e-05,2]
[347775626,1736099446071,-444.900991,9.409e-05,2]
[347775627,1736099446080,-500.0,9.409e-05,2]
[347775628,1736099446089,-500.0,9.409e-05,2]
[347775629,1736099446098,-500.0,9.409e-05,2]
[347775630,1736099446108,-998.54,9.409e-05,2]
[347775632,1736099446117,-500.0,9.409e-05,2]
[347775634,1736099446126,-500.0,9.409e-05,2]
[347775636,1736099446135,-500.0,9.409e-05,2]
[347775638,1736099446144,-500.0,9.409e-05,2]
[347775640,1736099446153,-621.04,9.409e-05,2]
[347775642,1736099446163,-1087.51,9.409e-05,2]
[347775644,1736099446172,-500.0,9.409e-05,2]
[347775646,1736099446181,-1101.2,9.409e-05,2]
[347775648,1736099446190,-1190.31,9.409e-05,2]
[347775650,1736099446199,-500.0,9.409e-05,2]
[347775652,1736099446208,-500.0,9.409e-05,2]
[347775654,1736099446217,-442.45647102,9.409e-05,2]
[347775656,1736099446227,-500.0,9.409e-05,2]
[347775658,1736099446235,-1054.86,9.409e-05,2]
[347775659,1736099446245,-500.0,9.409e-05,2]
[347775661,1736099446255,-500.0,9.409e-05,2]
[347775663,1736099446264,-593.36,9.409e-05,2]
[347775664,1736099446273,-717.49,9.409e-05,2]
[347775665,1736099446283,-500.0,9.409e-05,2]
[347775666,1736099446292,-500.0,9.409e-05,2]
[347775667,1736099446300,-1216.91,9.409e-05,2]
[347775668,1736099446309,-500.0,9.409e-05,2]
[347775669,1736099446319,-841.22,9.409e-05,2]
[347775670,1736099446327,-657.49,9.409e-05,2]
[347775671,1736099446336,-500.0,9.409e-05,2]
[347775672,1736099446345,-500.0,9.409e-05,2]
[347775673,1736099446354,-500.0,9.409e-05,2]
[347775674,1736099446362,-500.0,9.409e-05,2]
[347775675,1736099446371,-554.18,9.409e-05,2]
[347775676,1736099446380,-551.21,9.409e-05,2]
[347775677,1736099446389,-500.0,9.409e-05,2]
[347775678,1736099446399,-1542.66,9.409e-05,2]
[347775679,1736099446407,-1676.55,9.409e-05,2]
[347775680,1736099446416,-500.0,9.409e-05,2]
[347775681,1736099446425,-500.0,9.409e-05,2]
[347775682,1736099446434,-500.0,9.409e-05,2]
[347775683,1736099446444,-500.0,9.409e-05,2]
[347775684,1736099446453,-567.93,9.409e-05,2]
[347775685,1736099446462,-500.0,9.41e-05,2]
[347775686,1736099446475,-500.0,9.41e-05,2]
[347775687,1736099446484,-500.0,9.41e-05,2]
[347775688,1736099446493,-510.16917547,9.41e-05,2]
[347775689,1736099446502,-500.0,9.41e-05,2]
[347775690,1736099446512,-500.0,9.41e-05,2]
[347775691,1736099446521,-500.0,9.41e-05,2]
[347775692,1736099446530,-500.0,9.41e-05,2]
[347775693,1736099446540,-595.84,9.41e-05,2]
[347775694,1736099446549,-500.0,9.41e-05,2]
[347775695,1736099446560,-500.0,9.41e-05,2]
[347775696,1736099446569,-500.0,9.41e-05,2]
[347775697,1736099446579,-500.0,9.41e-05,2]
[347775698,1736099446588,-500.0,9.41e-05,2]
[347775699,1736099446598,-500.0,9.41e-05,2]
[347775700,1736099446608,-500.0,9.41e-05,2]
[347775701,1736099446617,-500.0,9.41e-05,2]
[347775702,1736099446627,-525.26,9.41e-05,2]
[347775703,1736099446636,-500.0,9.41e-05,2]
[347775704,1736099446647,-500.0,9.41e-05,2]
[347775705,1736099446657,-500.0,9.41e-05,2]
[347775706,1736099446666,-500.0,9.41e-05,2]
[347775707,1736099446676,-500.0,9.41e-05,2]
[347775708,1736099446686,-500.0,9.41e-05,2]
[347775709,1736099446695,-500.0,9.41e-05,2]
[347775710,1736099446705,-500.0,9.41e-05,2]
[347775711,1736099446714,-500.0,9.41e-05,2]
[347775712,1736099446723,-500.0,9.41e-05,2]
[347775713,1736099446733,-500.0,9.41e-05,2]
[347775715,1736099446742,-316.33025789,9.41e-05,2]
[347775717,1736099446762,-183.66974211,9.41e-05,2]
[347775718,1736099446771,-500.0,9.41e-05,2]
[347775719,1736099446780,-500.0,9.41e-05,2]
[347775720,1736099446789,-500.0,9.41e-05,2]
[347775721,1736099446799,-500.0,9.41e-05,2]
[347775722,1736099446808,-500.0,9.41e-05,2]
[347775723,1736099446817,-500.0,9.41e-05,2]
[347775724,1736099446826,-500.0,9.41e-05,2]
[347775725,1736099446836,-555.29,9.41e-05,2]
[347775726,1736099446845,-500.0,9.41e-05,2]
[347775727,1736099446855,-500.0,9.41e-05,2]
[347775728,1736099446864,-500.0,9.41e-05,2]
[347775729,1736099446873,-500.0,9.41e-05,2]
[347775730,1736099446882,-1456.24,9.41e-05,2]
[347775731,1736099446892,-641.01,9.41e-05,2]
[347775732,1736099446901,-500.0,9.41e-05,2]
[347775733,1736099446910,-500.0,9.41e-05,2]
[347775734,1736099446920,-500.0,9.41e-05,2]
[347775735,1736099446929,-500.0,9.41e-05,2]
[347775736,1736099446938,-500.0,9.41e-05,2]
[347775737,1736099446948,-500.0,9.41e-05,2]
[347775738,1736099446957,-500.0,9.41e-05,2]
[347775739,1736099446967,-500.0,9.41e-05,2]
[347775740,1736099446976,-500.0,9.41e-05,2]
[347775741,1736099446986,-500.0,9.41e-05,2]
[347775742,1736099446995,-500.0,9.41e-05,2]
[347775743,1736099447005,-500.0,9.41e-05,2]
[347775744,1736099447014,-500.0,9.41e-05,2]
[347775745,1736099447023,-500.0,9.41e-05,2]
[347775746,1736099447032,-500.0,9.41e-05,2]
[347775747,1736099447041,-500.0,9.41e-05,2]
[347775748,1736099447051,-500.0,9.41e-05,2]
[347775749,1736099447061,-500.0,9.41e-05,2]
[347775750,1736099447070,-500.0,9.41e-05,2]
[347775751,1736099447080,-511.01,9.411e-05,2]
[347775752,1736099447089,-746.88,9.411e-05,2]
[347775753,1736099447099,-500.0,9.411e-05,2]
[347775754,1736099447108,-500.0,9.411e-05,2]
[347775755,1736099447118,-1325.71,9.411e-05,2]
[347775756,1736099447127,-682.39,9.411e-05,2]
[347775757,1736099447136,-2092.54,9.411e-05,2]
[347775758,1736099447145,-1423.34,9.411e-05,2]
[347775759,1736099447155,-1862.91,9.411e-05,2]
[347775760,1736099447165,-500.0,9.411e-05,2]
[347775761,1736099447174,-500.0,9.411e-05,2]
[347775762,1736099447183,-1392.82,9.411e-05,2]
[347775763,1736099447192,-589.63,9.411e-05,2]
[347775764,1736099447201,-549.22,9.411e-05,2]
[347775765,1736099447211,-1073.55,9.411e-05,2]
[347775766,1736099447220,-500.0,9.411e-05,2]
[347775767,1736099447229,-605.81,9.411e-05,2]
[347775768,1736099447239,-1177.46,9.411e-05,2]
[347775769,1736099447247,-641.24,9.411e-05,2]
[347775770,1736099447256,-928.96,9.411e-05,2]
[347775771,1736099447265,-688.04,9.411e-05,2]
[347775772,1736099447275,-500.0,9.411e-05,2]
[347775773,1736099447284,-527.35,9.411e-05,2]
[347775774,1736099447293,-721.42,9.411e-05,2]
[347775775,1736099447303,-721.42,9.411e-05,2]
[347775776,1736099447311,-730.88,9.411e-05,2]
[347775777,1736099447320,-1077.7,9.411e-05,2]
[347775778,1736099447329,-571.01,9.411e-05,2]
[347775779,1736099447337,-500.0,9.411e-05,2]
[347775780,1736099447346,-771.32,9.425e-05,2]
[347775781,1736099447355,-150.0,9.5e-05,2]
[347775782,1736099447363,-500.0,9.588e-05,2]
[347775783,1736099447372,-500.0,9.588e-05,2]
[347775784,1736099447381,-1081.5,9.588e-05,2]
[347775785,1736099447391,-1059.04,9.588e-05,2]
[347775786,1736099447400,-1107.79,9.588e-05,2]
[347775787,1736099447409,-2621.03,9.588e-05,2]
[347775788,1736099447418,-500.0,9.588e-05,2]
[347775789,1736099447427,-500.0,9.588e-05,2]
[347775790,1736099447436,-616.85,9.588e-05,2]
[347775791,1736099447444,-1460.73,9.588e-05,2]
[347775792,1736099447453,-530.93,9.588e-05,2]
[347775793,1736099447462,-711.48,9.588e-05,2]
[347775794,1736099447476,-668.0,9.588e-05,2]
[347775795,1736099447485,-849.33,9.588e-05,2]
[347775796,1736099447494,-500.0,9.588e-05,2]
[347775797,1736099447503,-500.0,9.588e-05,2]
[347775798,1736099447514,-1007.94,9.588e-05,2]
[347775799,1736099447523,-1101.56,9.588e-05,2]
[347775800,1736099447533,-150.0,9.667e-05,2]
[347775801,1736099447542,-150.0,9.667e-05,2]
[347775802,1736099447551,-150.0,9.667e-05,2]
[347775803,1736099447560,-5235.98610588,9.682e-05,2]
[347775804,1736099447569,-500.0,9.683e-05,2]
[347775805,1736099447579,-500.0,9.683e-05,2]
[347775806,1736099447588,-342.81666997,9.683e-05,2]
[347775807,1736099447597,-500.0,9.683e-05,2]
[347775808,1736099447607,-500.0,9.683e-05,2]
[347775809,1736099447616,-500.0,9.683e-05,2]
[347775810,1736099447625,-562.09,9.683e-05,2]
[347775811,1736099447635,-500.0,9.683e-05,2]
[347775812,1736099447643,-500.0,9.683e-05,2]
[347775813,1736099447653,-500.0,9.683e-05,2]
[347775814,1736099447662,-500.0,9.683e-05,2]
[347775815,1736099447672,-500.0,9.683e-05,2]
[347775816,1736099447681,-510.43,9.683e-05,2]
[347775817,1736099447691,-500.0,9.683e-05,2]
[347775818,1736099447700,-500.0,9.683e-05,2]
[347775819,1736099447710,-500.0,9.683e-05,2]
[347775820,1736099447719,-197.53913764,9.683e-05,2]
[347775821,1736099447728,-518.82,9.683e-05,2]
[347775822,1736099447738,-456.58899342,9.683e-05,2]
[347775823,1736099447747,-578.326912,9.683e-05,2]
[347775824,1736099447757,-500.0,9.683e-05,2]
[347775825,1736099447766,-500.0,9.683e-05,2]
[347775826,1736099447776,-1184.1,9.683e-05,2]
[347775827,1736099447786,-500.0,9.683e-05,2]
[347775828,1736099447795,-444.900991,9.683e-05,2]
[347775829,1736099447804,-500.0,9.683e-05,2]
[347775830,1736099447813,-500.0,9.683e-05,2]
[347775831,1736099447822,-500.0,9.683e-05,2]
[347775832,1736099447831,-998.54,9.683e-05,2]
[347775833,1736099447840,-500.0,9.683e-05,2]
[347775834,1736099447849,-500.0,9.683e-05,2]
[347775835,1736099447858,-500.0,9.683e-05,2]
[347775836,1736099447867,-500.0,9.683e-05,2]
[347775837,1736099447875,-621.04,9.683e-05,2]
[347775838,1736099447884,-1087.51,9.683e-05,2]
[347775839,1736099447892,-500.0,9.683e-05,2]
[347775840,1736099447902,-1101.2,9.683e-05,2]
[347775841,1736099447910,-1190.31,9.683e-05,2]
[347775842,1736099447919,-500.0,9.683e-05,2]
[347775843,1736099447928,-500.0,9.683e-05,2]
[347775844,1736099447936,-456.17551826,9.683e-05,2]
[347775845,1736099447946,-1054.86,9.683e-05,2]
[347775846,1736099447955,-500.0,9.683e-05,2]
[347775847,1736099447964,-500.0,9.683e-05,2]
[347775848,1736099447973,-593.36,9.683e-05,2]
[347775849,1736099447982,-717.49,9.683e-05,2]
[347775850,1736099447990,-500.0,9.683e-05,2]
[347775851,1736099447999,-500.0,9.683e-05,2]
[347775852,1736099448009,-1216.91,9.683e-05,2]
[347775853,1736099448018,-500.0,9.683e-05,2]
[347775854,1736099448027,-841.22,9.683e-05,2]
[347775855,1736099448037,-657.49,9.683e-05,2]
[347775856,1736099448047,-500.0,9.683e-05,2]
[347775857,1736099448056,-500.0,9.683e-05,2]
[347775858,1736099448066,-500.0,9.683e-05,2]
[347775859,1736099448075,-500.0,9.683e-05,2]
[347775860,1736099448085,-554.18,9.683e-05,2]
[347775861,1736099448095,-551.21,9.683e-05,2]
[347775862,1736099448104,-500.0,9.683e-05,2]
[347775863,1736099448114,-1542.66,9.683e-05,2]
[347775864,1736099448123,-1676.55,9.683e-05,2]
[347775865,1736099448133,-500.0,9.683e-05,2]
[347775866,1736099448142,-500.0,9.683e-05,2]
[347775867,1736099448151,-500.0,9.683e-05,2]
[347775868,1736099448160,-500.0,9.683e-05,2]
[347775869,1736099448169,-2.6959297,9.683e-05,2]
[347775870,1736099448209,-565.2340703,9.683e-05,2]
[347775871,1736099448218,-120.7659297,9.684e-05,2]
[347775872,1736099448237,-207.85852972,9.684e-05,2]
[347775873,1736099448246,-344.57729993,9.684e-05,2]
[347775874,1736099448258,-155.42270007,9.684e-05,2]
[347775875,1736099448267,-216.27730003,9.684e-05,2]
[347775876,1736099449012,-442.50870023,9.135e-05,2]
[347775877,1736099449024,-57.49129977,9.135e-05,2]
[347775878,1736099449033,-399.51581532,9.135e-05,2]
[347775879,1736099449048,-100.48418468,9.135e-05,2]
[347775880,1736099449058,-500.0,9.409e-05,2]
[347775881,1736099449068,-500.0,9.683e-05,2]
[347775882,1736099449078,-283.72269997,9.684e-05,2]
[347775883,1736099449088,-500.0,9.684e-05,2]
[347775884,1736099449097,-500.0,9.684e-05,2]
[347775885,1736099449107,-500.0,9.684e-05,2]
[347775886,1736099449117,-500.0,9.684e-05,2]
[347775887,1736099449127,-500.0,9.684e-05,2]
[347775888,1736099449136,-500.0,9.684e-05,2]
[347775889,1736099449145,-500.0,9.684e-05,2]
[347775890,1736099449155,-500.0,9.684e-05,2]
[347775891,1736099449164,-500.0,9.684e-05,2]
[347775892,1736099449173,-500.0,9.684e-05,2]
[347775893,1736099449183,-506.72881482,9.684e-05,2]
[347775894,1736099449192,-500.0,9.684e-05,2]
[347775895,1736099449202,-525.26,9.684e-05,2]
[347775896,1736099449211,-500.0,9.684e-05,2]
[347775897,1736099449221,-500.0,9.684e-05,2]
[347775898,1736099449231,-500.0,9.684e-05,2]
[347775899,1736099449241,-500.0,9.684e-05,2]
[347775900,1736099449251,-500.0,9.684e-05,2]
[347775901,1736099449261,-500.0,9.684e-05,2]
[347775902,1736099449270,-500.0,9.684e-05,2]
[347775903,1736099449280,-500.0,9.684e-05,2]
[347775904,1736099449289,-500.0,9.684e-05,2]
[347775905,1736099449299,-500.0,9.684e-05,2]
[347775906,1736099449308,-500.0,9.684e-05,2]
[347775907,1736099449318,-500.0,9.684e-05,2]
[347775908,1736099449328,-500.0,9.684e-05,2]
[347775909,1736099449338,-500.0,9.684e-05,2]
[347775910,1736099449347,-500.0,9.684e-05,2]
[347775911,1736099449356,-500.0,9.684e-05,2]
[347775912,1736099449366,-500.0,9.684e-05,2]
[347775913,1736099449375,-500.0,9.684e-05,2]
[347775914,1736099449384,-500.0,9.684e-05,2]
[347775915,1736099449394,-500.0,9.684e-05,2]
[347775916,1736099449404,-500.0,9.684e-05,2]
[347775917,1736099449413,-500.0,9.684e-05,2]
[347775918,1736099449422,-641.01,9.684e-05,2]
[347775919,1736099449431,-500.0,9.684e-05,2]
[347775920,1736099449441,-500.0,9.684e-05,2]
[347775921,1736099449450,-500.0,9.684e-05,2]
[347775922,1736099449461,-500.0,9.684e-05,2]
[347775923,1736099449476,-500.0,9.684e-05,2]
[347775924,1736099449486,-500.0,9.684e-05,2]
[347775925,1736099449495,-310.69,9.684e-05,2]
[347775926,1736099449504,-500.0,9.684e-05,2]
[347775927,1736099449514,-500.0,9.684e-05,2]
[347775928,1736099449523,-500.0,9.684e-05,2]
[347775929,1736099449532,-500.0,9.684e-05,2]
[347775930,1736099449542,-505.67180595,9.684e-05,2]
[347775931,1736099449551,-500.0,9.684e-05,2]
[347775932,1736099449561,-500.0,9.684e-05,2]
[347775933,1736099449570,-500.0,9.684e-05,2]
[347775934,1736099449579,-500.0,9.684e-05,2]
[347775935,1736099449588,-500.0,9.684e-05,2]
[347775936,1736099449596,-511.01,9.685e-05,2]
[347775937,1736099449605,-746.88,9.685e-05,2]
[347775938,1736099449614,-500.0,9.685e-05,2]
[347775939,1736099449623,-500.0,9.685e-05,2]
[347775940,1736099449632,-1325.71,9.685e-05,2]
[347775941,1736099449642,-682.39,9.685e-05,2]
[347775942,1736099449652,-2092.54,9.685e-05,2]
[347775943,1736099449660,-1423.34,9.685e-05,2]
[347775944,1736099449670,-1862.91,9.685e-05,2]
[347775945,1736099449680,-500.0,9.685e-05,2]
[347775946,1736099449689,-500.0,9.685e-05,2]
[347775947,1736099449698,-1392.82,9.685e-05,2]
[347775948,1736099449707,-589.63,9.685e-05,2]
[347775949,1736099449716,-549.22,9.685e-05,2]
[347775950,1736099449725,-1073.55,9.685e-05,2]
[347775951,1736099449734,-500.0,9.685e-05,2]
[347775952,1736099449743,-605.81,9.685e-05,2]
[347775953,1736099449752,-1177.46,9.685e-05,2]
[347775954,1736099449762,-641.24,9.685e-05,2]
[347775955,1736099449771,-928.96,9.685e-05,2]
[347775956,1736099449780,-688.04,9.685e-05,2]
[347775957,1736099449789,-500.0,9.685e-05,2]
[347775958,1736099449798,-527.35,9.685e-05,2]
[347775959,1736099449807,-721.42,9.685e-05,2]
[347775960,1736099449816,-721.42,9.685e-05,2]
[347775961,1736099449826,-730.88,9.685e-05,2]
[347775962,1736099449836,-1077.7,9.685e-05,2]
[347775963,1736099449845,-571.01,9.685e-05,2]
[347775964,1736099449854,-500.0,9.685e-05,2]
[347775965,1736099449865,-150.0,9.833e-05,2]
[347775966,1736099449875,-150.0,9.836e-05,2]
[347775967,1736099449885,-182.86,9.836e-05,2]
[347775968,1736099449894,-978.7,9.836e-05,2]
[347775969,1736099449904,-150.0,9.836e-05,2]
[347775970,1736099449913,-155.07,9.836e-05,2]
[347775971,1736099449923,-436.94,9.836e-05,2]
[347775972,1736099449932,-312.74,9.836e-05,2]
[347775973,1736099449941,-436.94,9.836e-05,2]
[347775974,1736099449950,-182.86,9.836e-05,2]
[347775975,1736099449959,-150.0,9.836e-05,2]
[347775976,1736099449968,-182.86,9.836e-05,2]
[347775977,1736099449977,-150.0,9.836e-05,2]
[347775978,1736099449987,-436.94,9.836e-05,2]
[347775979,1736099449997,-182.38,9.836e-05,2]
[347775980,1736099450007,-285.29589342,9.862e-05,2]
[347775981,1736099450017,-500.0,9.862e-05,2]
[347775982,1736099450026,-1081.5,9.862e-05,2]
[347775983,1736099450036,-1059.04,9.862e-05,2]
[347775984,1736099450045,-1107.79,9.862e-05,2]
[347775985,1736099450054,-2621.03,9.862e-05,2]
[347775986,1736099450063,-500.0,9.862e-05,2]
[347775987,1736099450073,-500.0,9.862e-05,2]
[347775988,1736099450082,-616.85,9.862e-05,2]
[347775989,1736099450092,-1460.73,9.862e-05,2]
[347775990,1736099450101,-530.93,9.862e-05,2]
[347775991,1736099450110,-711.48,9.862e-05,2]
[347775992,1736099450119,-668.0,9.862e-05,2]
[347775993,1736099450128,-849.33,9.862e-05,2]
[347775994,1736099450137,-500.0,9.862e-05,2]
[347775995,1736099450146,-500.0,9.862e-05,2]
[347775996,1736099450155,-1007.94,9.862e-05,2]
[347775997,1736099450165,-1101.56,9.862e-05,2]
[347775998,1736099450175,-1083.9231,9.9e-05,2]
[347775999,1736099450184,-1000.0,9.9e-05,2]
[347776000,1736099450193,-5890.9066,9.9e-05,2]
[347776001,1736099450202,-15221.56405547,9.952e-05,2]
[347776002,1736099450212,-500.0,9.957e-05,2]
[347776003,1736099450223,-500.0,9.957e-05,2]
[347776004,1736099450232,-500.0,9.957e-05,2]
[347776005,1736099450242,-500.0,9.957e-05,2]
[347776006,1736099450251,-562.09,9.957e-05,2]
[347776007,1736099450260,-500.0,9.957e-05,2]
[347776008,1736099450270,-500.0,9.957e-05,2]
[347776009,1736099450279,-500.0,9.957e-05,2]
[347776010,1736099450289,-500.0,9.957e-05,2]
[347776011,1736099450299,-500.0,9.957e-05,2]
[347776012,1736099450309,-510.43,9.957e-05,2]
[347776013,1736099450320,-491.62456285,9.957e-05,2]
[347776014,1736099450329,-500.0,9.957e-05,2]
[347776015,1736099450338,-500.0,9.957e-05,2]
[347776016,1736099450347,-518.82,9.957e-05,2]
[347776017,1736099450356,-578.326912,9.957e-05,2]
[347776018,1736099450365,-500.0,9.957e-05,2]
[347776019,1736099450374,-500.0,9.957e-05,2]
[347776020,1736099450384,-1184.1,9.957e-05,2]
[347776021,1736099450394,-500.0,9.957e-05,2]
[347776022,1736099450403,-444.900991,9.957e-05,2]
[347776023,1736099450413,-500.0,9.957e-05,2]
[347776024,1736099450422,-500.0,9.957e-05,2]
[347776025,1736099450431,-500.0,9.957e-05,2]
[347776026,1736099450441,-998.54,9.957e-05,2]
[347776027,1736099450450,-265.4468,9.957e-05,2]
[347776028,1736099450459,-500.0,9.957e-05,2]
[347776029,1736099450471,-500.0,9.957e-05,2]
[347776030,1736099450480,-500.0,9.957e-05,2]
[347776031,1736099450490,-621.04,9.957e-05,2]
[347776032,1736099450499,-1087.51,9.957e-05,2]
[347776033,1736099450508,-500.0,9.957e-05,2]
[347776034,1736099450517,-1101.2,9.957e-05,2]
[347776035,1736099450526,-1190.31,9.957e-05,2]
[347776036,1736099450535,-564.52,9.957e-05,2]
[347776037,1736099450544,-500.0,9.957e-05,2]
[347776038,1736099450554,-1054.86,9.957e-05,2]
[347776039,1736099450563,-500.0,9.957e-05,2]
[347776040,1736099450572,-500.0,9.957e-05,2]
[347776041,1736099450583,-593.36,9.957e-05,2]
[347776042,1736099450593,-717.49,9.957e-05,2]
[347776043,1736099450602,-500.0,9.957e-05,2]
[347776044,1736099450612,-386.18762195,9.957e-05,2]
[347776045,1736099450621,-1216.91,9.957e-05,2]
[347776046,1736099450630,-500.0,9.957e-05,2]
[347776047,1736099450640,-841.22,9.957e-05,2]
[347776048,1736099450650,-657.49,9.957e-05,2]
[347776049,1736099450659,-500.0,9.957e-05,2]
[347776050,1736099450669,-500.0,9.957e-05,2]
[347776051,1736099450678,-500.0,9.957e-05,2]
[347776052,1736099450687,-500.0,9.957e-05,2]
[347776053,1736099450696,-554.18,9.957e-05,2]
[347776054,1736099450706,-551.21,9.957e-05,2]
[347776055,1736099450715,-500.0,9.957e-05,2]
[347776056,1736099450724,-1542.66,9.957e-05,2]
[347776057,1736099450734,-1676.55,9.957e-05,2]
[347776058,1736099450744,-500.0,9.957e-05,2]
[347776059,1736099450753,-500.0,9.957e-05,2]
[347776060,1736099450765,-500.0,9.957e-05,2]
[347776061,1736099450777,-500.0,9.957e-05,2]
[347776062,1736099450789,-567.93,9.957e-05,2]
[347776063,1736099450802,-500.0,9.958e-05,2]
[347776064,1736099450813,-500.0,9.958e-05,2]
[347776065,1736099450825,-500.0,9.958e-05,2]
[347776066,1736099450836,-500.0,9.958e-05,2]
[347776067,1736099450846,-571.52067567,9.958e-05,2]
[347776068,1736099450857,-500.0,9.958e-05,2]
[347776069,1736099450869,-500.0,9.958e-05,2]
[347776070,1736099450881,-500.0,9.958e-05,2]
[347776071,1736099450892,-500.0,9.958e-05,2]
[347776072,1736099450904,-500.0,9.958e-05,2]
[347776073,1736099450916,-500.0,9.958e-05,2]
[347776074,1736099450928,-500.0,9.958e-05,2]